[Event "Titled Tuesday Blitz March 28 Late 2023"]
[White "Graif, William"]
[Black "Oro, Faustino"]
[WhiteFideId "2609835"]
[BlackFideId "20000197"]
[WhiteElo "2205"]
[BlackElo "1984"]
[Result "0-1"]
[Round "10"]
[TimeControl "180+2"]
[Date "2023.03.28"]
[WhiteClock "0:00:01"]
[BlackClock "0:00:15"]

1. e4 {[%clk 0:02:50]}  e5 {[%clk 0:02:58]} 2. Nf3 {[%clk 0:02:49]}  Nc6 {[%clk 0:02:58]} 3. d4 {[%clk 0:02:49]}  exd4 {[%clk 0:02:58]} 4. c3 {[%clk 0:02:50]}  d5 {[%clk 0:02:51]} 5. Bd3 {[%clk 0:02:45]}  Bg4 {[%clk 0:02:23]} 6. O-O {[%clk 0:02:39]}  Be7 {[%clk 0:02:18]} 7. Re1 {[%clk 0:02:07]}  Nf6 {[%clk 0:02:08]} 8. e5 {[%clk 0:02:03]}  Nd7 {[%clk 0:01:55]} 9. Bb5 {[%clk 0:02:02]}  O-O {[%clk 0:01:40]} 10. Bxc6 {[%clk 0:01:50]}  bxc6 {[%clk 0:01:40]} 11. cxd4 {[%clk 0:01:51]}  c5 {[%clk 0:01:40]} 12. dxc5 {[%clk 0:01:46]}  Nxc5 {[%clk 0:01:40]} 13. Nc3 {[%clk 0:01:42]}  c6 {[%clk 0:01:40]} 14. h3 {[%clk 0:01:34]}  Bh5 {[%clk 0:01:40]} 15. Be3 {[%clk 0:01:22]}  Ne6 {[%clk 0:01:37]} 16. g4 {[%clk 0:01:01]}  Bg6 {[%clk 0:01:36]} 17. Nd4 {[%clk 0:00:56]}  Qd7 {[%clk 0:01:21]} 18. Rc1 {[%clk 0:00:50]}  c5 {[%clk 0:01:16]} 19. Nxe6 {[%clk 0:00:37]}  fxe6 {[%clk 0:01:11]} 20. Ne2 {[%clk 0:00:27]}  d4 {[%clk 0:01:05]} 21. Bf4 {[%clk 0:00:19]}  Qb5 {[%clk 0:00:58]} 22. b3 {[%clk 0:00:16]}  Rad8 {[%clk 0:00:48]} 23. Bg3 {[%clk 0:00:17]}  Bg5 {[%clk 0:00:38]} 24. f4 {[%clk 0:00:17]}  Be7 {[%clk 0:00:38]} 25. Qd2 {[%clk 0:00:17]}  Qb6 {[%clk 0:00:35]} 26. Kh2 {[%clk 0:00:16]}  Be4 {[%clk 0:00:34]} 27. Ng1 {[%clk 0:00:16]}  Ba8 {[%clk 0:00:33]} 28. Rf1 {[%clk 0:00:16]}  Be4 {[%clk 0:00:30]} 29. Rce1 {[%clk 0:00:16]}  Qb7 {[%clk 0:00:31]} 30. Qe2 {[%clk 0:00:15]}  Bg6 {[%clk 0:00:29]} 31. Nf3 {[%clk 0:00:15]}  Qd5 {[%clk 0:00:26]} 32. Ng5 {[%clk 0:00:15]}  d3 {[%clk 0:00:23]} 33. Qd2 {[%clk 0:00:15]}  h6 {[%clk 0:00:20]} 34. Nf3 {[%clk 0:00:15]}  c4 {[%clk 0:00:20]} 35. bxc4 {[%clk 0:00:15]}  Qxc4 {[%clk 0:00:20]} 36. Rc1 {[%clk 0:00:15]}  Qa4 {[%clk 0:00:19]} 37. Rc7 {[%clk 0:00:13]}  Bb4 {[%clk 0:00:19]} 38. Qf2 {[%clk 0:00:11]}  d2 {[%clk 0:00:19]} 39. Rxa7 {[%clk 0:00:05]}  d1=Q {[%clk 0:00:17]} 40. Rxd1 {[%clk 0:00:02]}  Qxd1 {[%clk 0:00:17]} 41. Nh4 {[%clk 0:00:01]}  Rd2 {[%clk 0:00:15]} 0-1


[Site "https://www.chess.com"]

[Event "Titled Tuesday Blitz March 28 Late 2023"]
[White "koncheto"]
[Black "Koksal, Ege"]
[BlackFideId "6317626"]
[WhiteElo "2479"]
[BlackElo "2226"]
[Result "1-0"]
[Round "10"]
[TimeControl "180+2"]
[Date "2023.03.28"]
[WhiteClock "0:00:04"]
[BlackClock "0:00:10"]

1. e4 {[%clk 0:03:00]}  c6 {[%clk 0:02:59]} 2. d4 {[%clk 0:03:00]}  d5 {[%clk 0:03:00]} 3. Nc3 {[%clk 0:03:01]}  g6 {[%clk 0:03:00]} 4. Nf3 {[%clk 0:02:55]}  Bg7 {[%clk 0:02:59]} 5. h3 {[%clk 0:02:53]}  e6 {[%clk 0:02:56]} 6. Bd3 {[%clk 0:02:53]}  b6 {[%clk 0:02:56]} 7. Qe2 {[%clk 0:02:51]}  a5 {[%clk 0:02:56]} 8. Be3 {[%clk 0:02:49]}  Ba6 {[%clk 0:02:56]} 9. O-O {[%clk 0:02:48]}  Ne7 {[%clk 0:02:56]} 10. Rad1 {[%clk 0:02:42]}  O-O {[%clk 0:02:56]} 11. Rfe1 {[%clk 0:02:42]}  Bxd3 {[%clk 0:02:53]} 12. Qxd3 {[%clk 0:02:43]}  Nd7 {[%clk 0:02:52]} 13. Ne2 {[%clk 0:02:43]}  Rc8 {[%clk 0:02:43]} 14. c3 {[%clk 0:02:40]}  c5 {[%clk 0:02:32]} 15. exd5 {[%clk 0:02:33]}  c4 {[%clk 0:02:31]} 16. Qe4 {[%clk 0:02:24]}  Nxd5 {[%clk 0:02:31]} 17. Nf4 {[%clk 0:02:24]}  N7f6 {[%clk 0:02:29]} 18. Qc2 {[%clk 0:02:22]}  b5 {[%clk 0:02:22]} 19. Ne5 {[%clk 0:02:20]}  Qc7 {[%clk 0:02:22]} 20. h4 {[%clk 0:02:17]}  Nxe3 {[%clk 0:02:14]} 21. Rxe3 {[%clk 0:02:16]}  Rfd8 {[%clk 0:01:57]} 22. Rg3 {[%clk 0:01:58]}  Nd5 {[%clk 0:01:55]} 23. Nh3 {[%clk 0:01:13]}  Bxe5 {[%clk 0:01:53]} 24. dxe5 {[%clk 0:01:12]}  Qxe5 {[%clk 0:01:51]} 25. Rd4 {[%clk 0:01:09]}  Nf6 {[%clk 0:01:37]} 26. Rf4 {[%clk 0:01:00]}  Qe1+ {[%clk 0:01:21]} 27. Kh2 {[%clk 0:01:00]}  Rd1 {[%clk 0:01:22]} 28. Rg5 {[%clk 0:00:40]}  Nd5 {[%clk 0:01:08]} 29. Rf3 {[%clk 0:00:26]}  Ne7 {[%clk 0:00:54]} 30. h5 {[%clk 0:00:11]}  Nf5 {[%clk 0:00:50]} 31. Rfxf5 {[%clk 0:00:08]}  exf5 {[%clk 0:00:50]} 32. Qxf5 {[%clk 0:00:08]}  Qh1+ {[%clk 0:00:46]} 33. Kg3 {[%clk 0:00:08]}  Rd3+ {[%clk 0:00:46]} 34. f3 {[%clk 0:00:08]}  Qe1+ {[%clk 0:00:46]} 35. Kh2 {[%clk 0:00:06]}  Qe6 {[%clk 0:00:38]} 36. Qxb5 {[%clk 0:00:05]}  Qd6+ {[%clk 0:00:33]} 37. f4 {[%clk 0:00:02]}  Rxh3+ {[%clk 0:00:18]} 38. Kxh3 {[%clk 0:00:02]}  Qxf4 {[%clk 0:00:19]} 39. hxg6 {[%clk 0:00:01]}  hxg6 {[%clk 0:00:13]} 40. Qxa5 {[%clk 0:00:02]}  Re8 {[%clk 0:00:11]} 41. Rg3 {[%clk 0:00:02]}  Re5 {[%clk 0:00:10]} 42. Qd8+ {[%clk 0:00:02]}  Kg7 {[%clk 0:00:10]} 43. Qd4 {[%clk 0:00:02]}  Qf6 {[%clk 0:00:08]} 44. Kh2 {[%clk 0:00:02]}  Rh5+ {[%clk 0:00:07]} 45. Kg1 {[%clk 0:00:02]}  Re5 {[%clk 0:00:07]} 46. Re3 {[%clk 0:00:03]}  Rxe3 {[%clk 0:00:07]} 47. Qxe3 {[%clk 0:00:03]}  Qc6 {[%clk 0:00:08]} 48. Qd4+ {[%clk 0:00:03]}  Kg8 {[%clk 0:00:08]} 49. a3 {[%clk 0:00:03]}  Qa4 {[%clk 0:00:09]} 50. Qc5 {[%clk 0:00:03]}  Qb3 {[%clk 0:00:08]} 51. Qb4 {[%clk 0:00:04]}  Qd1+ {[%clk 0:00:09]} 52. Kf2 {[%clk 0:00:04]}  Qd2+ {[%clk 0:00:09]} 53. Kf3 {[%clk 0:00:04]}  Qd3+ {[%clk 0:00:09]} 54. Kf2 {[%clk 0:00:05]}  f5 {[%clk 0:00:10]} 55. Qb8+ {[%clk 0:00:04]}  Kg7 {[%clk 0:00:10]} 56. a4 {[%clk 0:00:04]}  g5 {[%clk 0:00:10]} 57. Qe5+ {[%clk 0:00:04]}  Kg6 {[%clk 0:00:10]} 58. a5 {[%clk 0:00:03]}  f4 {[%clk 0:00:10]} 59. Qd4 {[%clk 0:00:03]}  Qc2+ {[%clk 0:00:10]} 60. Kg1 {[%clk 0:00:03]}  Qb1+ {[%clk 0:00:09]} 61. Kh2 {[%clk 0:00:03]}  Qxb2 {[%clk 0:00:09]} 62. Qb6+ {[%clk 0:00:04]}  Kh5 {[%clk 0:00:10]} 63. Qxb2 {[%clk 0:00:04]} 1-0


[Site "https://www.chess.com"]

[Event "Titled Tuesday Blitz March 28 Late 2023"]
[White "Senthilkumar, Pranav"]
[Black "Fiorito, Francisco"]
[WhiteFideId "2083477"]
[BlackFideId "180165"]
[WhiteElo "1860"]
[BlackElo "2341"]
[Result "1-0"]
[Round "10"]
[TimeControl "180+2"]
[Date "2023.03.28"]
[WhiteClock "0:01:56"]
[BlackClock "0:01:43"]

1. Nf3 {[%clk 0:03:00]}  Nf6 {[%clk 0:02:57]} 2. d4 {[%clk 0:03:00]}  g6 {[%clk 0:02:55]} 3. Bg5 {[%clk 0:03:01]}  Bg7 {[%clk 0:02:55]} 4. Nbd2 {[%clk 0:03:01]}  d5 {[%clk 0:02:55]} 5. e3 {[%clk 0:03:00]}  c6 {[%clk 0:02:55]} 6. Be2 {[%clk 0:03:00]}  h6 {[%clk 0:02:55]} 7. Bf4 {[%clk 0:03:00]}  Bf5 {[%clk 0:02:56]} 8. h3 {[%clk 0:03:00]}  O-O {[%clk 0:02:56]} 9. O-O {[%clk 0:03:00]}  Re8 {[%clk 0:02:55]} 10. Ne5 {[%clk 0:02:59]}  Nbd7 {[%clk 0:02:55]} 11. c4 {[%clk 0:02:58]}  Ne4 {[%clk 0:02:54]} 12. Nxe4 {[%clk 0:02:57]}  Bxe4 {[%clk 0:02:55]} 13. Nxd7 {[%clk 0:02:57]}  Qxd7 {[%clk 0:02:55]} 14. Bd3 {[%clk 0:02:56]}  Bxd3 {[%clk 0:02:53]} 15. Qxd3 {[%clk 0:02:55]}  Rad8 {[%clk 0:02:53]} 16. Rfd1 {[%clk 0:02:51]}  Kh7 {[%clk 0:02:50]} 17. Bg3 {[%clk 0:02:46]}  Qe6 {[%clk 0:02:44]} 18. Rac1 {[%clk 0:02:46]}  Kg8 {[%clk 0:02:40]} 19. Qa3 {[%clk 0:02:40]}  a6 {[%clk 0:02:38]} 20. Qb4 {[%clk 0:02:39]}  Qd7 {[%clk 0:02:38]} 21. cxd5 {[%clk 0:02:38]}  cxd5 {[%clk 0:02:38]} 22. Rc7 {[%clk 0:02:38]}  Qf5 {[%clk 0:02:37]} 23. Rxb7 {[%clk 0:02:26]}  e6 {[%clk 0:02:31]} 24. Rc1 {[%clk 0:02:23]}  Rc8 {[%clk 0:02:30]} 25. Rbc7 {[%clk 0:02:23]}  Rxc7 {[%clk 0:02:30]} 26. Rxc7 {[%clk 0:02:23]}  Qb1+ {[%clk 0:02:30]} 27. Kh2 {[%clk 0:02:23]}  Qxa2 {[%clk 0:02:31]} 28. Qb7 {[%clk 0:02:21]}  Rf8 {[%clk 0:01:49]} 29. Bd6 {[%clk 0:02:20]}  Qa4 {[%clk 0:01:49]} 30. Bxf8 {[%clk 0:02:19]}  Bxf8 {[%clk 0:01:50]} 31. Rxf7 {[%clk 0:02:14]}  Qc2 {[%clk 0:01:50]} 32. Rf3 {[%clk 0:02:11]}  Bg7 {[%clk 0:01:35]} 33. Qf7+ {[%clk 0:02:10]}  Kh7 {[%clk 0:01:36]} 34. Qxe6 {[%clk 0:02:08]}  Qxb2 {[%clk 0:01:36]} 35. Qxa6 {[%clk 0:02:04]}  Qb8+ {[%clk 0:01:35]} 36. g3 {[%clk 0:02:04]}  Qe8 {[%clk 0:01:35]} 37. Qb7 {[%clk 0:02:00]}  Qg8 {[%clk 0:01:30]} 38. Rf7 {[%clk 0:01:57]}  h5 {[%clk 0:01:31]} 39. Kg2 {[%clk 0:01:57]}  Kh6 {[%clk 0:01:32]} 40. Rxg7 {[%clk 0:01:57]}  Qxg7 {[%clk 0:01:31]} 41. Qxg7+ {[%clk 0:01:58]}  Kxg7 {[%clk 0:01:32]} 42. Kf3 {[%clk 0:01:59]}  Kf6 {[%clk 0:01:32]} 43. e4 {[%clk 0:01:59]}  Ke6 {[%clk 0:01:33]} 44. e5 {[%clk 0:01:58]}  Kf5 {[%clk 0:01:33]} 45. g4+ {[%clk 0:01:58]}  hxg4+ {[%clk 0:01:32]} 46. hxg4+ {[%clk 0:01:59]}  Kg5 {[%clk 0:01:32]} 47. Kg3 {[%clk 0:01:58]}  Kh6 {[%clk 0:01:33]} 48. f4 {[%clk 0:01:58]}  Kg7 {[%clk 0:01:34]} 49. f5 {[%clk 0:01:58]}  g5 {[%clk 0:01:34]} 50. Kf3 {[%clk 0:01:57]}  Kf7 {[%clk 0:01:35]} 51. Ke3 {[%clk 0:01:57]}  Ke7 {[%clk 0:01:36]} 52. Kd3 {[%clk 0:01:58]}  Kf7 {[%clk 0:01:37]} 53. Kc3 {[%clk 0:01:58]}  Ke7 {[%clk 0:01:38]} 54. Kb4 {[%clk 0:01:59]}  Ke8 {[%clk 0:01:39]} 55. Kc5 {[%clk 0:01:59]}  Kd7 {[%clk 0:01:39]} 56. f6 {[%clk 0:01:59]}  Ke6 {[%clk 0:01:40]} 57. Kc6 {[%clk 0:01:59]}  Kf7 {[%clk 0:01:41]} 58. Kd7 {[%clk 0:01:59]}  Kf8 {[%clk 0:01:41]} 59. Ke6 {[%clk 0:01:58]}  Kg8 {[%clk 0:01:42]} 60. Ke7 {[%clk 0:01:57]}  Kh8 {[%clk 0:01:40]} 61. f7 {[%clk 0:01:57]}  Kh7 {[%clk 0:01:40]} 62. f8=Q {[%clk 0:01:56]}  Kg6 {[%clk 0:01:41]} 63. Qf7+ {[%clk 0:01:55]}  Kh6 {[%clk 0:01:42]} 64. Qf6+ {[%clk 0:01:55]}  Kh7 {[%clk 0:01:42]} 65. Qxg5 {[%clk 0:01:54]}  Kh8 {[%clk 0:01:42]} 66. Kf7 {[%clk 0:01:55]}  Kh7 {[%clk 0:01:43]} 67. Qg7# {[%clk 0:01:56]} 1-0


[Site "https://www.chess.com"]

[Event "Titled Tuesday Blitz March 28 Late 2023"]
[White "Jocev, Milan"]
[Black "Fan_Of_Chucky"]
[WhiteFideId "900680"]
[WhiteElo "2323"]
[BlackElo "2399"]
[Result "1-0"]
[Round "10"]
[TimeControl "180+2"]
[Date "2023.03.28"]
[WhiteClock "0:00:15"]
[BlackClock "0:00:04"]

1. e4 {[%clk 0:03:00]}  c5 {[%clk 0:02:59]} 2. Nf3 {[%clk 0:03:00]}  a6 {[%clk 0:03:00]} 3. c3 {[%clk 0:03:00]}  d5 {[%clk 0:02:57]} 4. exd5 {[%clk 0:02:59]}  Qxd5 {[%clk 0:02:58]} 5. d4 {[%clk 0:02:58]}  Nf6 {[%clk 0:02:57]} 6. Be2 {[%clk 0:02:57]}  cxd4 {[%clk 0:02:56]} 7. cxd4 {[%clk 0:02:57]}  e6 {[%clk 0:02:57]} 8. Nc3 {[%clk 0:02:57]}  Qd8 {[%clk 0:02:57]} 9. O-O {[%clk 0:02:58]}  Nc6 {[%clk 0:02:55]} 10. Bd3 {[%clk 0:02:56]}  Be7 {[%clk 0:02:49]} 11. Re1 {[%clk 0:02:57]}  O-O {[%clk 0:02:48]} 12. a3 {[%clk 0:02:57]}  b5 {[%clk 0:02:47]} 13. Bg5 {[%clk 0:02:55]}  h6 {[%clk 0:02:45]} 14. Bh4 {[%clk 0:02:53]}  Bb7 {[%clk 0:02:43]} 15. Bc2 {[%clk 0:02:50]}  b4 {[%clk 0:02:31]} 16. Na4 {[%clk 0:02:25]}  Rc8 {[%clk 0:01:49]} 17. Qd3 {[%clk 0:02:17]}  Nxd4 {[%clk 0:01:14]} 18. Nxd4 {[%clk 0:01:31]}  Rxc2 {[%clk 0:01:13]} 19. Qxc2 {[%clk 0:01:12]}  Qxd4 {[%clk 0:01:13]} 20. Bg3 {[%clk 0:01:00]}  Rc8 {[%clk 0:00:39]} 21. Rad1 {[%clk 0:00:55]}  Rxc2 {[%clk 0:00:25]} 22. Rxd4 {[%clk 0:00:55]}  bxa3 {[%clk 0:00:26]} 23. bxa3 {[%clk 0:00:53]}  Bxa3 {[%clk 0:00:27]} 24. h3 {[%clk 0:00:32]}  Bd5 {[%clk 0:00:20]} 25. Rb1 {[%clk 0:00:29]}  Rc1+ {[%clk 0:00:16]} 26. Rxc1 {[%clk 0:00:29]}  Bxc1 {[%clk 0:00:17]} 27. Nb6 {[%clk 0:00:28]}  Bb7 {[%clk 0:00:07]} 28. Be5 {[%clk 0:00:25]}  Nd5 {[%clk 0:00:05]} 29. Nxd5 {[%clk 0:00:25]}  Bxd5 {[%clk 0:00:03]} 30. Ra4 {[%clk 0:00:25]}  Bb7 {[%clk 0:00:04]} 31. Rb4 {[%clk 0:00:25]}  Bd5 {[%clk 0:00:04]} 32. Rb6 {[%clk 0:00:22]}  Bc4 {[%clk 0:00:04]} 33. Rb8+ {[%clk 0:00:20]}  Kh7 {[%clk 0:00:04]} 34. Rb7 {[%clk 0:00:17]}  Kg6 {[%clk 0:00:02]} 35. Ra7 {[%clk 0:00:17]}  Bb5 {[%clk 0:00:02]} 36. Bc3 {[%clk 0:00:17]}  Bf4 {[%clk 0:00:02]} 37. g3 {[%clk 0:00:16]}  Bg5 {[%clk 0:00:03]} 38. h4 {[%clk 0:00:16]}  Bf6 {[%clk 0:00:04]} 39. Bxf6 {[%clk 0:00:15]}  Kxf6 {[%clk 0:00:04]} 40. Kg2 {[%clk 0:00:16]}  g5 {[%clk 0:00:04]} 41. hxg5+ {[%clk 0:00:16]}  hxg5 {[%clk 0:00:05]} 42. f3 {[%clk 0:00:14]}  Kg6 {[%clk 0:00:04]} 43. Kf2 {[%clk 0:00:15]}  f5 {[%clk 0:00:04]} 44. Ke3 {[%clk 0:00:15]}  Kf6 {[%clk 0:00:05]} 45. Rb7 {[%clk 0:00:14]}  Ke5 {[%clk 0:00:04]} 46. Rb6 {[%clk 0:00:13]}  Kf6 {[%clk 0:00:04]} 47. f4 {[%clk 0:00:14]}  gxf4+ {[%clk 0:00:03]} 48. gxf4 {[%clk 0:00:14]}  Bc4 {[%clk 0:00:03]} 49. Kd4 {[%clk 0:00:15]}  Bb5 {[%clk 0:00:03]} 50. Rb7 {[%clk 0:00:13]}  Bc6 {[%clk 0:00:02]} 51. Ra7 {[%clk 0:00:13]}  Bb5 {[%clk 0:00:03]} 52. Rb7 {[%clk 0:00:13]}  Bc6 {[%clk 0:00:03]} 53. Rc7 {[%clk 0:00:14]}  Bb5 {[%clk 0:00:04]} 54. Rc5 {[%clk 0:00:14]}  Be2 {[%clk 0:00:03]} 55. Rc2 {[%clk 0:00:14]}  Bb5 {[%clk 0:00:03]} 56. Ra2 {[%clk 0:00:15]}  Kg6 {[%clk 0:00:03]} 57. Ke5 {[%clk 0:00:15]}  Bc4 {[%clk 0:00:03]} 58. Rc2 {[%clk 0:00:15]}  Bd5 {[%clk 0:00:03]} 59. Rc5 {[%clk 0:00:15]}  Kh5 {[%clk 0:00:02]} 60. Ra5 {[%clk 0:00:14]}  Bc4 {[%clk 0:00:02]} 61. Ra4 {[%clk 0:00:15]}  Bb5 {[%clk 0:00:02]} 62. Rb4 {[%clk 0:00:14]}  Bd7 {[%clk 0:00:01]} 63. Rb7 {[%clk 0:00:13]}  Bb5 {[%clk 0:00:01]} 64. Kxe6 {[%clk 0:00:13]}  Kg4 {[%clk 0:00:02]} 65. Ke5 {[%clk 0:00:14]}  Bd3 {[%clk 0:00:01]} 66. Rg7+ {[%clk 0:00:14]}  Kf3 {[%clk 0:00:01]} 67. Rd7 {[%clk 0:00:14]}  Be4 {[%clk 0:00:02]} 68. Rd4 {[%clk 0:00:13]}  Kg4 {[%clk 0:00:01]} 69. Ra4 {[%clk 0:00:12]}  Bd3 {[%clk 0:00:01]} 70. Ra5 {[%clk 0:00:12]}  Bb5 {[%clk 0:00:01]} 71. Ra3 {[%clk 0:00:13]}  Bc4 {[%clk 0:00:02]} 72. Rc3 {[%clk 0:00:13]}  Bb5 {[%clk 0:00:02]} 73. Rc7 {[%clk 0:00:13]}  Bd3 {[%clk 0:00:02]} 74. Rd7 {[%clk 0:00:12]}  Be4 {[%clk 0:00:02]} 75. Rd4 {[%clk 0:00:10]}  Bc6 {[%clk 0:00:02]} 76. Rd1 {[%clk 0:00:11]}  Bb5 {[%clk 0:00:02]} 77. Rg1+ {[%clk 0:00:11]}  Kf3 {[%clk 0:00:03]} 78. Kxf5 {[%clk 0:00:11]}  a5 {[%clk 0:00:04]} 79. Ra1 {[%clk 0:00:11]}  a4 {[%clk 0:00:04]} 80. Ke5 {[%clk 0:00:12]}  Kg4 {[%clk 0:00:04]} 81. f5 {[%clk 0:00:12]}  Kg5 {[%clk 0:00:05]} 82. f6 {[%clk 0:00:13]}  Kg6 {[%clk 0:00:05]} 83. Rg1+ {[%clk 0:00:13]}  Kf7 {[%clk 0:00:05]} 84. Rg7+ {[%clk 0:00:14]}  Kf8 {[%clk 0:00:05]} 85. Ra7 {[%clk 0:00:15]}  Be8 {[%clk 0:00:05]} 86. Ke6 {[%clk 0:00:15]}  Kg8 {[%clk 0:00:04]} 87. Ra8 {[%clk 0:00:15]}  Kf8 {[%clk 0:00:04]} 88. f7 {[%clk 0:00:15]} 1-0


[Site "https://www.chess.com"]

[Event "Titled Tuesday Blitz March 28 Late 2023"]
[White "Bogaudinov, Rushan"]
[Black "Romkachess"]
[WhiteFideId "4129288"]
[WhiteElo "1949"]
[BlackElo "2515"]
[Result "1-0"]
[Round "10"]
[TimeControl "180+2"]
[Date "2023.03.28"]
[WhiteClock "0:00:10"]
[BlackClock "0:00:01"]

1. d4 {[%clk 0:02:59]}  Nf6 {[%clk 0:02:56]} 2. g3 {[%clk 0:02:59]}  e6 {[%clk 0:02:53]} 3. Bg2 {[%clk 0:02:59]}  d5 {[%clk 0:02:51]} 4. Nf3 {[%clk 0:02:59]}  Be7 {[%clk 0:02:49]} 5. O-O {[%clk 0:02:59]}  O-O {[%clk 0:02:47]} 6. b3 {[%clk 0:02:59]}  Nbd7 {[%clk 0:02:46]} 7. Bb2 {[%clk 0:02:59]}  c5 {[%clk 0:02:43]} 8. e3 {[%clk 0:02:58]}  b6 {[%clk 0:02:39]} 9. Ne5 {[%clk 0:02:56]}  Bb7 {[%clk 0:02:37]} 10. Nd2 {[%clk 0:02:55]}  Rc8 {[%clk 0:02:35]} 11. c4 {[%clk 0:02:51]}  cxd4 {[%clk 0:02:31]} 12. Bxd4 {[%clk 0:02:46]}  Nxe5 {[%clk 0:02:09]} 13. Bxe5 {[%clk 0:02:45]}  Nd7 {[%clk 0:02:10]} 14. Bb2 {[%clk 0:02:41]}  Bf6 {[%clk 0:02:10]} 15. Bxf6 {[%clk 0:02:37]}  Nxf6 {[%clk 0:02:10]} 16. Rc1 {[%clk 0:02:33]}  Qe7 {[%clk 0:02:09]} 17. Qe2 {[%clk 0:02:30]}  dxc4 {[%clk 0:02:09]} 18. Bxb7 {[%clk 0:02:29]}  Qxb7 {[%clk 0:02:10]} 19. Nxc4 {[%clk 0:02:20]}  Qe7 {[%clk 0:02:08]} 20. Qf3 {[%clk 0:02:09]}  Rc7 {[%clk 0:02:03]} 21. Ne5 {[%clk 0:02:06]}  Rfc8 {[%clk 0:01:29]} 22. Rxc7 {[%clk 0:02:05]}  Rxc7 {[%clk 0:01:24]} 23. Rd1 {[%clk 0:02:03]}  Qe8 {[%clk 0:01:05]} 24. g4 {[%clk 0:01:56]}  h6 {[%clk 0:01:03]} 25. h4 {[%clk 0:01:56]}  Nd5 {[%clk 0:00:58]} 26. g5 {[%clk 0:01:43]}  hxg5 {[%clk 0:00:40]} 27. hxg5 {[%clk 0:01:44]}  Qe7 {[%clk 0:00:29]} 28. Qg4 {[%clk 0:01:31]}  Qb4 {[%clk 0:00:22]} 29. Qxb4 {[%clk 0:00:45]}  Nxb4 {[%clk 0:00:23]} 30. a3 {[%clk 0:00:37]}  Nd5 {[%clk 0:00:23]} 31. g6 {[%clk 0:00:27]}  fxg6 {[%clk 0:00:17]} 32. Nf3 {[%clk 0:00:19]}  Rc3 {[%clk 0:00:17]} 33. Ng5 {[%clk 0:00:18]}  Rxb3 {[%clk 0:00:13]} 34. e4 {[%clk 0:00:18]}  Rxa3 {[%clk 0:00:06]} 35. exd5 {[%clk 0:00:18]}  exd5 {[%clk 0:00:05]} 36. Rxd5 {[%clk 0:00:17]}  Kf8 {[%clk 0:00:06]} 37. Rd7 {[%clk 0:00:15]}  Ra5 {[%clk 0:00:02]} 38. f4 {[%clk 0:00:12]}  Rf5 {[%clk 0:00:01]} 39. Rxa7 {[%clk 0:00:10]} 1-0


[Site "https://www.chess.com"]

[Event "Titled Tuesday Blitz March 28 Late 2023"]
[White "Skvortsov, Andrei"]
[Black "Przybylski, Wojciech"]
[WhiteFideId "24108600"]
[BlackFideId "1117599"]
[WhiteElo "2259"]
[BlackElo "2222"]
[Result "0-1"]
[Round "10"]
[TimeControl "180+2"]
[Date "2023.03.28"]
[WhiteClock "0:00:05"]
[BlackClock "0:00:12"]

1. d4 {[%clk 0:03:00]}  d5 {[%clk 0:02:58]} 2. c4 {[%clk 0:03:01]}  c6 {[%clk 0:02:58]} 3. Nf3 {[%clk 0:03:00]}  Nf6 {[%clk 0:02:57]} 4. e3 {[%clk 0:02:57]}  Bf5 {[%clk 0:02:55]} 5. Nc3 {[%clk 0:02:57]}  e6 {[%clk 0:02:55]} 6. Be2 {[%clk 0:02:56]}  Nbd7 {[%clk 0:02:54]} 7. O-O {[%clk 0:02:56]}  h6 {[%clk 0:02:53]} 8. Re1 {[%clk 0:02:43]}  Bd6 {[%clk 0:02:51]} 9. Bf1 {[%clk 0:02:41]}  O-O {[%clk 0:02:50]} 10. h3 {[%clk 0:02:38]}  Re8 {[%clk 0:02:49]} 11. Nd2 {[%clk 0:02:29]}  e5 {[%clk 0:02:45]} 12. cxd5 {[%clk 0:02:28]}  cxd5 {[%clk 0:02:45]} 13. dxe5 {[%clk 0:02:29]}  Nxe5 {[%clk 0:02:44]} 14. Nf3 {[%clk 0:02:29]}  Ng6 {[%clk 0:02:38]} 15. Nb5 {[%clk 0:02:25]}  Bb8 {[%clk 0:02:36]} 16. Nbd4 {[%clk 0:02:25]}  Bd7 {[%clk 0:02:35]} 17. Bb5 {[%clk 0:02:24]}  Bxb5 {[%clk 0:02:29]} 18. Nxb5 {[%clk 0:02:25]}  a6 {[%clk 0:02:25]} 19. Nbd4 {[%clk 0:02:25]}  Ne4 {[%clk 0:02:24]} 20. a4 {[%clk 0:02:22]}  Bd6 {[%clk 0:02:21]} 21. Qb3 {[%clk 0:02:22]}  Rb8 {[%clk 0:02:11]} 22. Bd2 {[%clk 0:02:16]}  Nc5 {[%clk 0:02:03]} 23. Qd1 {[%clk 0:02:14]}  Nd3 {[%clk 0:02:02]} 24. Rf1 {[%clk 0:02:09]}  Nxb2 {[%clk 0:02:02]} 25. Qb3 {[%clk 0:02:08]}  Nc4 {[%clk 0:02:01]} 26. Bc3 {[%clk 0:02:07]}  Qd7 {[%clk 0:01:50]} 27. Rfb1 {[%clk 0:02:05]}  Rec8 {[%clk 0:01:45]} 28. Be1 {[%clk 0:02:03]}  Ne7 {[%clk 0:01:42]} 29. Qd3 {[%clk 0:02:00]}  Rc7 {[%clk 0:01:25]} 30. Kf1 {[%clk 0:01:47]}  Rbc8 {[%clk 0:01:24]} 31. Rb3 {[%clk 0:01:45]}  b6 {[%clk 0:01:03]} 32. Rab1 {[%clk 0:01:43]}  Bc5 {[%clk 0:01:03]} 33. Ne2 {[%clk 0:01:34]}  Nf5 {[%clk 0:00:58]} 34. Qd1 {[%clk 0:01:22]}  Bxe3 {[%clk 0:00:55]} 35. fxe3 {[%clk 0:01:22]}  Nfxe3+ {[%clk 0:00:55]} 36. Kg1 {[%clk 0:01:18]}  Nxd1 {[%clk 0:00:54]} 37. Rxd1 {[%clk 0:01:19]}  Qxa4 {[%clk 0:00:52]} 38. Rbb1 {[%clk 0:01:17]}  Ne3 {[%clk 0:00:47]} 39. Rd2 {[%clk 0:01:06]}  Rc2 {[%clk 0:00:46]} 40. Rxb6 {[%clk 0:00:58]}  Rxd2 {[%clk 0:00:44]} 41. Bxd2 {[%clk 0:00:59]}  Qd1+ {[%clk 0:00:43]} 42. Kf2 {[%clk 0:00:49]}  Nc4 {[%clk 0:00:35]} 43. Nc3 {[%clk 0:00:39]}  Qc2 {[%clk 0:00:34]} 44. Nxd5 {[%clk 0:00:37]}  Nxb6 {[%clk 0:00:29]} 45. Nxb6 {[%clk 0:00:32]}  Rd8 {[%clk 0:00:28]} 46. Ke2 {[%clk 0:00:28]}  Qd3+ {[%clk 0:00:22]} 47. Kf2 {[%clk 0:00:26]}  Qb5 {[%clk 0:00:21]} 48. Be3 {[%clk 0:00:23]}  Re8 {[%clk 0:00:18]} 49. Bd4 {[%clk 0:00:22]}  Re4 {[%clk 0:00:15]} 50. Nc8 {[%clk 0:00:19]}  Qc6 {[%clk 0:00:12]} 51. Na7 {[%clk 0:00:13]}  Qd7 {[%clk 0:00:12]} 52. Bc5 {[%clk 0:00:12]}  Rc4 {[%clk 0:00:11]} 53. Bb6 {[%clk 0:00:11]}  Rc2+ {[%clk 0:00:11]} 54. Kg1 {[%clk 0:00:08]}  Rb2 {[%clk 0:00:11]} 55. Bd4 {[%clk 0:00:07]}  Rb7 {[%clk 0:00:11]} 56. Kf2 {[%clk 0:00:05]}  Rxa7 {[%clk 0:00:11]} 57. Bxa7 {[%clk 0:00:05]}  Qxa7+ {[%clk 0:00:12]} 0-1


[Site "https://www.chess.com"]

[Event "Titled Tuesday Blitz March 28 Late 2023"]
[White "Ansh M Shah"]
[Black "Romanchuk, Viktor"]
[WhiteFideId "25033379"]
[BlackFideId "14109271"]
[WhiteElo "2084"]
[BlackElo "2242"]
[Result "0-1"]
[Round "10"]
[TimeControl "180+2"]
[Date "2023.03.28"]
[WhiteClock "0:01:53"]
[BlackClock "0:00:42"]

1. d4 {[%clk 0:02:59]}  d5 {[%clk 0:02:59]} 2. c4 {[%clk 0:03:00]}  c6 {[%clk 0:02:58]} 3. cxd5 {[%clk 0:02:55]}  cxd5 {[%clk 0:02:59]} 4. Nc3 {[%clk 0:02:56]}  Nf6 {[%clk 0:02:59]} 5. Bf4 {[%clk 0:02:56]}  Nc6 {[%clk 0:02:58]} 6. e3 {[%clk 0:02:57]}  Bf5 {[%clk 0:02:58]} 7. Nf3 {[%clk 0:02:54]}  e6 {[%clk 0:02:56]} 8. Qb3 {[%clk 0:02:54]}  Bb4 {[%clk 0:02:12]} 9. Bb5 {[%clk 0:02:53]}  O-O {[%clk 0:02:02]} 10. Bxc6 {[%clk 0:02:52]}  Bxc3+ {[%clk 0:01:58]} 11. Qxc3 {[%clk 0:02:53]}  Rc8 {[%clk 0:01:55]} 12. Ne5 {[%clk 0:02:49]}  bxc6 {[%clk 0:01:54]} 13. O-O {[%clk 0:02:45]}  c5 {[%clk 0:01:42]} 14. dxc5 {[%clk 0:02:43]}  Ne4 {[%clk 0:01:41]} 15. Qa3 {[%clk 0:02:43]}  Nxc5 {[%clk 0:01:28]} 16. Qxa7 {[%clk 0:02:41]}  f6 {[%clk 0:01:28]} 17. Nf3 {[%clk 0:02:31]}  e5 {[%clk 0:01:19]} 18. Bg3 {[%clk 0:02:29]}  Nd3 {[%clk 0:01:19]} 19. b3 {[%clk 0:02:09]}  Rf7 {[%clk 0:00:49]} 20. Qa5 {[%clk 0:01:53]}  Qxa5 {[%clk 0:00:42]} 0-1


[Site "https://www.chess.com"]